[Event "Live Chess"]
[Site "Chess.com"]
[Date "2023.05.20"]
[Round "-"]
[White "jameskwong"]
[Black "Supertromp"]
[Result "0-1"]
[WhiteElo "2141"]
[BlackElo "2195"]
[TimeControl "300"]
[EndTime "11:47:27 PDT"]
[Termination "Supertromp won by resignation"]

1. d4 {[%clk 0:04:59.3]} 1... Nf6 {[%clk 0:04:58.1]} 2. c4 {[%clk 0:04:57.7]}
2... g6 {[%clk 0:04:54.3]} 3. Nc3 {[%clk 0:04:55.9]} 3... Bg7 {[%clk 0:04:53.1]}
4. e4 {[%clk 0:04:54.2]} 4... d6 {[%clk 0:04:51]} 5. Nf3 {[%clk 0:04:52.9]} 5...
O-O {[%clk 0:04:49]} 6. Be2 {[%clk 0:04:52.3]} 6... Na6 {[%clk 0:04:48.1]} 7.
O-O {[%clk 0:04:51.2]} 7... e5 {[%clk 0:04:47]} 8. Re1 {[%clk 0:04:45.1]} 8...
exd4 {[%clk 0:04:36.3]} 9. Nxd4 {[%clk 0:04:42.2]} 9... Nc5 {[%clk 0:04:35.9]}
10. f3 {[%clk 0:04:40.3]} 10... Nh5 {[%clk 0:04:25.2]} 11. Be3 {[%clk
0:04:20.7]} 11... Qh4 {[%clk 0:04:09.3]} 12. Rc1 {[%clk 0:03:59.7]} 12... Be5
{[%clk 0:04:04.2]} 13. f4 {[%clk 0:03:26.2]} 13... Bxf4 {[%clk 0:03:37.1]} 14.
Bxf4 {[%clk 0:03:06.6]} 14... Nxf4 {[%clk 0:03:32]} 15. Bf3 {[%clk 0:02:55]}
15... Ncd3 {[%clk 0:03:18.5]} 16. g3 {[%clk 0:02:37.9]} 16... Qg5 {[%clk
0:03:15.5]} 17. Kh1 {[%clk 0:02:19.5]} 17... Nf2+ {[%clk 0:03:13.8]} 0-1

[Event "Live Chess"]
[Site "Chess.com"]
[Date "2023.05.20"]
[Round "-"]
[White "gmnorfolk"]
[Black "rideuv21"]
[Result "0-1"]
[WhiteElo "2086"]
[BlackElo "1835"]
[TimeControl "300"]
[EndTime "11:47:28 PDT"]
[Termination "rideuv21 won by resignation"]

1. d4 {[%clk 0:04:56.6]} 1... c5 {[%clk 0:04:59.9]} 2. d5 {[%clk 0:04:54.7]}
2... Nf6 {[%clk 0:04:58.4]} 3. Nc3 {[%clk 0:04:52.9]} 3... g6 {[%clk 0:04:55.5]}
4. e4 {[%clk 0:04:52.8]} 4... d6 {[%clk 0:04:54.2]} 5. Nf3 {[%clk 0:04:49.3]}
5... Bg7 {[%clk 0:04:53.6]} 6. Bc4 {[%clk 0:04:47.8]} 6... O-O {[%clk
0:04:51.7]} 7. O-O {[%clk 0:04:46.2]} 7... b5 {[%clk 0:04:44.9]} 8. Bxb5 {[%clk
0:04:42.3]} 8... Ba6 {[%clk 0:04:44]} 9. Bxa6 {[%clk 0:04:40.8]} 9... Nxa6
{[%clk 0:04:43.9]} 10. Qe2 {[%clk 0:04:37.8]} 10... Qa5 {[%clk 0:04:41.7]} 11.
Nd2 {[%clk 0:04:35]} 11... Rab8 {[%clk 0:04:38.3]} 12. Nc4 {[%clk 0:04:33.9]}
12... Qc7 {[%clk 0:04:35.9]} 13. Bd2 {[%clk 0:04:24]} 13... Nd7 {[%clk
0:04:33.7]} 14. f4 {[%clk 0:04:17.6]} 14... Nb6 {[%clk 0:04:30.4]} 15. Na5
{[%clk 0:04:15.2]} 15... c4 {[%clk 0:04:27.4]} 16. Nc6 {[%clk 0:04:13.9]} 16...
Rbc8 {[%clk 0:04:23.9]} 17. a4 {[%clk 0:04:10.5]} 17... Nb8 {[%clk 0:04:21.6]}
18. a5 {[%clk 0:03:57.2]} 18... Nxc6 {[%clk 0:04:20]} 19. axb6 {[%clk
0:03:55.5]} 19... Qxb6+ {[%clk 0:04:18.7]} 20. Be3 {[%clk 0:03:41.7]} 20... Bd4
{[%clk 0:04:16.7]} 21. Bxd4 {[%clk 0:03:38.1]} 21... Qxd4+ {[%clk 0:04:16.6]}
22. Qf2 {[%clk 0:03:32.3]} 22... Qxf2+ {[%clk 0:04:08.6]} 23. Rxf2 {[%clk
0:03:31.5]} 23... Nd4 {[%clk 0:04:04.8]} 24. Rxa7 {[%clk 0:03:30]} 24... Rb8
{[%clk 0:04:03.2]} 25. Rxe7 {[%clk 0:03:23.2]} 25... Rxb2 {[%clk 0:04:00.9]} 26.
Rd7 {[%clk 0:03:20.5]} 26... Ra8 {[%clk 0:03:34.1]} 27. h3 {[%clk 0:03:15.2]}
27... Ra3 {[%clk 0:03:26.5]} 28. Ne2 {[%clk 0:03:07.2]} 28... Ra1+ {[%clk
0:03:14.4]} 29. Kh2 {[%clk 0:03:03.7]} 29... Rxc2 {[%clk 0:03:13]} 30. Nxd4
{[%clk 0:02:52.6]} 30... Rxf2 {[%clk 0:03:11.5]} 31. e5 {[%clk 0:02:51.6]} 31...
Rxf4 {[%clk 0:03:08.8]} 32. e6 {[%clk 0:02:44]} 32... Rxd4 {[%clk 0:03:06.5]}
33. Rd8+ {[%clk 0:02:31.9]} 33... Kg7 {[%clk 0:03:03.9]} 34. e7 {[%clk
0:02:31.1]} 34... Re1 {[%clk 0:03:02.1]} 35. e8=Q {[%clk 0:02:26.8]} 35... Rxe8
{[%clk 0:03:02]} 36. Rxe8 {[%clk 0:02:26]} 36... Rxd5 {[%clk 0:03:00.4]} 37. Rc8
{[%clk 0:02:25.7]} 37... Rc5 {[%clk 0:02:59.4]} 0-1

[Event "Live Chess"]
[Site "Chess.com"]
[Date "2023.05.20"]
[Round "-"]
[White "MarkLim1"]
[Black "thrithik"]
[Result "1-0"]
[WhiteElo "1620"]
[BlackElo "459"]
[TimeControl "300"]
[EndTime "11:47:49 PDT"]
[Termination "MarkLim1 won by checkmate"]

1. d4 {[%clk 0:04:57.8]} 1... a5 {[%clk 0:04:58.3]} 2. e4 {[%clk 0:04:56.8]}
2... b5 {[%clk 0:04:56.1]} 3. Bxb5 {[%clk 0:04:55.6]} 3... c6 {[%clk 0:04:53.9]}
4. Bc4 {[%clk 0:04:54.5]} 4... d5 {[%clk 0:04:51.5]} 5. exd5 {[%clk 0:04:53.1]}
5... e6 {[%clk 0:04:49.9]} 6. dxe6 {[%clk 0:04:51.9]} 6... fxe6 {[%clk
0:04:47.4]} 7. Qh5+ {[%clk 0:04:50]} 7... g6 {[%clk 0:04:42.4]} 8. Qf3 {[%clk
0:04:46.6]} 8... Nh6 {[%clk 0:04:37.6]} 9. Bxh6 {[%clk 0:04:44.3]} 9... Bxh6
{[%clk 0:04:34.7]} 10. c3 {[%clk 0:04:41.9]} 10... Bg5 {[%clk 0:04:29.1]} 11.
Nh3 {[%clk 0:04:39.1]} 11... Rf8 {[%clk 0:04:27.8]} 12. Qe2 {[%clk 0:04:34.8]}
12... e5 {[%clk 0:04:22.4]} 13. Qxe5+ {[%clk 0:04:32.9]} 13... Qe7 {[%clk
0:04:14.7]} 14. Nxg5 {[%clk 0:04:31.1]} 14... h6 {[%clk 0:03:47]} 15. Nf3 {[%clk
0:04:26.8]} 15... g5 {[%clk 0:03:42.8]} 16. O-O {[%clk 0:04:25]} 16... Rf7
{[%clk 0:03:40.1]} 17. Rc1 {[%clk 0:04:21.4]} 17... Rf6 {[%clk 0:03:38.1]} 18.
Nbd2 {[%clk 0:04:17.1]} 18... Re6 {[%clk 0:03:34.9]} 19. Bxe6 {[%clk 0:04:15.3]}
19... Bxe6 {[%clk 0:03:32.6]} 20. Re1 {[%clk 0:04:13.6]} 20... Na6 {[%clk
0:03:28.1]} 21. Qh8+ {[%clk 0:04:11.7]} 21... Kd7 {[%clk 0:03:25]} 22. Qxa8
{[%clk 0:04:09.5]} 22... Nc7 {[%clk 0:03:22.3]} 23. Ne5+ {[%clk 0:04:07.5]}
23... Kd6 {[%clk 0:03:18.4]} 24. Qxc6# {[%clk 0:04:05.5]} 1-0

[Event "Live Chess"]
[Site "Chess.com"]
[Date "2023.05.20"]
[Round "-"]
[White "AdamOwls"]
[Black "olahgito"]
[Result "1-0"]
[WhiteElo "1930"]
[BlackElo "728"]
[TimeControl "300"]
[EndTime "11:48:00 PDT"]
[Termination "AdamOwls won by checkmate"]

1. e4 {[%clk 0:04:57.6]} 1... d5 {[%clk 0:04:59.1]} 2. exd5 {[%clk 0:04:56]}
2... Qxd5 {[%clk 0:04:59]} 3. Nc3 {[%clk 0:04:54.1]} 3... Qd8 {[%clk 0:04:58.9]}
4. d4 {[%clk 0:04:53]} 4... Nc6 {[%clk 0:04:58.8]} 5. Nf3 {[%clk 0:04:51.6]}
5... Bg4 {[%clk 0:04:56.7]} 6. Be2 {[%clk 0:04:50.8]} 6... Bxf3 {[%clk
0:04:53.9]} 7. Bxf3 {[%clk 0:04:49.3]} 7... Nxd4 {[%clk 0:04:53.3]} 8. O-O
{[%clk 0:04:46.8]} 8... Nxf3+ {[%clk 0:04:50.2]} 9. Qxf3 {[%clk 0:04:46.7]} 9...
c6 {[%clk 0:04:38.8]} 10. Bf4 {[%clk 0:04:43.4]} 10... Nf6 {[%clk 0:04:36.3]}
11. Rfe1 {[%clk 0:04:41.7]} 11... e6 {[%clk 0:04:34.4]} 12. Rad1 {[%clk
0:04:40]} 12... Qc8 {[%clk 0:04:27.9]} 13. Be5 {[%clk 0:04:24.9]} 13... Be7
{[%clk 0:04:26]} 14. Ne4 {[%clk 0:04:19.4]} 14... Nxe4 {[%clk 0:04:17.9]} 15.
Rxe4 {[%clk 0:04:19.3]} 15... f6 {[%clk 0:04:16]} 16. Bc3 {[%clk 0:04:16.2]}
16... O-O {[%clk 0:04:11.1]} 17. Qe3 {[%clk 0:04:04]} 17... e5 {[%clk
0:04:07.9]} 18. Qg3 {[%clk 0:03:51.9]} 18... Qf5 {[%clk 0:03:55.8]} 19. Rg4
{[%clk 0:03:40]} 19... g6 {[%clk 0:03:49.7]} 20. Rd2 {[%clk 0:03:35.3]} 20...
Rad8 {[%clk 0:03:47.2]} 21. h4 {[%clk 0:03:16.4]} 21... Rxd2 {[%clk 0:03:33.9]}
22. Bxd2 {[%clk 0:03:16.3]} 22... Qxc2 {[%clk 0:03:33.1]} 23. Bh6 {[%clk
0:03:13.3]} 23... Rd8 {[%clk 0:03:27.4]} 24. a3 {[%clk 0:02:46.8]} 24... Qxb2
{[%clk 0:03:00.3]} 25. Rxg6+ {[%clk 0:02:43.9]} 25... hxg6 {[%clk 0:02:55.5]}
26. Qxg6+ {[%clk 0:02:43.8]} 26... Kh8 {[%clk 0:02:47.9]} 27. Qg7# {[%clk
0:02:43.7]} 1-0

[Event "Live Chess"]
[Site "Chess.com"]
[Date "2023.05.20"]
[Round "-"]
[White "luckywookie"]
[Black "KGreenGator"]
[Result "0-1"]
[WhiteElo "744"]
[BlackElo "1761"]
[TimeControl "300"]
[EndTime "11:48:01 PDT"]
[Termination "KGreenGator won by checkmate"]

1. e4 {[%clk 0:04:57.5]} 1... c5 {[%clk 0:04:58.9]} 2. c3 {[%clk 0:04:55.6]}
2... Nc6 {[%clk 0:04:58.4]} 3. d4 {[%clk 0:04:53.4]} 3... cxd4 {[%clk
0:04:57.1]} 4. cxd4 {[%clk 0:04:52.4]} 4... d5 {[%clk 0:04:56.7]} 5. exd5 {[%clk
0:04:47.8]} 5... Qxd5 {[%clk 0:04:54.9]} 6. Nf3 {[%clk 0:04:46.7]} 6... Qd8
{[%clk 0:04:52.5]} 7. Nc3 {[%clk 0:04:45.3]} 7... e6 {[%clk 0:04:50.8]} 8. Bb5
{[%clk 0:04:41.8]} 8... Bd7 {[%clk 0:04:49.1]} 9. O-O {[%clk 0:04:14]} 9... Nf6
{[%clk 0:04:47.5]} 10. Re1 {[%clk 0:04:12.2]} 10... Be7 {[%clk 0:04:45.8]} 11.
Be3 {[%clk 0:04:04.4]} 11... a6 {[%clk 0:04:43.5]} 12. Bxc6 {[%clk 0:03:56.1]}
12... Bxc6 {[%clk 0:04:42.3]} 13. Rc1 {[%clk 0:03:50.9]} 13... h6 {[%clk
0:04:40.5]} 14. d5 {[%clk 0:03:31.8]} 14... exd5 {[%clk 0:04:37.6]} 15. Bd4
{[%clk 0:03:22.8]} 15... O-O {[%clk 0:04:35.4]} 16. Ne5 {[%clk 0:03:20.5]} 16...
Qd6 {[%clk 0:04:31.8]} 17. Nxc6 {[%clk 0:03:12.1]} 17... bxc6 {[%clk 0:04:30.5]}
18. Bxf6 {[%clk 0:03:01.6]} 18... Bxf6 {[%clk 0:04:28.6]} 19. Rc2 {[%clk
0:02:59.2]} 19... Rfe8 {[%clk 0:04:26.2]} 20. Rce2 {[%clk 0:02:57.6]} 20... Red8
{[%clk 0:04:19.9]} 21. Qd3 {[%clk 0:02:31.1]} 21... c5 {[%clk 0:04:15.3]} 22.
Nxd5 {[%clk 0:02:10.5]} 22... Qxd5 {[%clk 0:04:10.3]} 23. Qxd5 {[%clk
0:02:08.7]} 23... Rxd5 {[%clk 0:04:08.9]} 24. b3 {[%clk 0:01:55.9]} 24... Bc3
{[%clk 0:04:02.8]} 25. Rc1 {[%clk 0:01:49.8]} 25... Bb4 {[%clk 0:04:01.2]} 26.
Re7 {[%clk 0:01:40]} 26... Rad8 {[%clk 0:03:58.4]} 27. h3 {[%clk 0:01:24.3]}
27... c4 {[%clk 0:03:55.6]} 28. Rc7 {[%clk 0:01:01]} 28... cxb3 {[%clk
0:03:50.4]} 29. axb3 {[%clk 0:00:57.9]} 29... Bd6 {[%clk 0:03:48.8]} 30. R7c6
{[%clk 0:00:54.6]} 30... Bb8 {[%clk 0:03:47.2]} 31. Rxa6 {[%clk 0:00:50.1]}
31... Rd1+ {[%clk 0:03:45.9]} 32. Rxd1 {[%clk 0:00:42.3]} 32... Rxd1# {[%clk
0:03:43.4]} 0-1

[Event "Live Chess"]
[Site "Chess.com"]
[Date "2023.05.20"]
[Round "-"]
[White "ameetghasi100"]
[Black "mattihelenius2"]
[Result "1-0"]
[WhiteElo "2704"]
[BlackElo "490"]
[TimeControl "300"]
[EndTime "11:48:07 PDT"]
[Termination "ameetghasi100 won by resignation"]

1. d4 {[%clk 0:04:58.3]} 1... d5 {[%clk 0:04:54.9]} 2. e4 {[%clk 0:04:58.2]}
2... Nf6 {[%clk 0:04:50.6]} 3. e5 {[%clk 0:04:56.7]} 3... Ne4 {[%clk 0:04:48.8]}
4. Nf3 {[%clk 0:04:56.6]} 4... Bg4 {[%clk 0:04:46.3]} 5. Be2 {[%clk 0:04:51.5]}
5... Nc6 {[%clk 0:04:44.1]} 6. c3 {[%clk 0:04:50]} 6... Qd7 {[%clk 0:04:32.6]}
7. Na3 {[%clk 0:04:47.6]} 7... g6 {[%clk 0:04:29.5]} 8. Nc2 {[%clk 0:04:46.1]}
8... Bg7 {[%clk 0:04:28]} 9. Ne3 {[%clk 0:04:45.7]} 9... Bxf3 {[%clk 0:04:24]}
10. gxf3 {[%clk 0:04:45.6]} 10... Ng5 {[%clk 0:04:20.2]} 11. f4 {[%clk
0:04:44.9]} 11... Ne4 {[%clk 0:04:16.8]} 12. f3 {[%clk 0:04:42.3]} 12... O-O
{[%clk 0:03:51.3]} 13. fxe4 {[%clk 0:04:40.6]} 13... dxe4 {[%clk 0:03:50.1]} 14.
h4 {[%clk 0:04:40.4]} 14... Qf5 {[%clk 0:03:45.2]} 15. Nxf5 {[%clk 0:04:38.5]}
1-0

[Event "Live Chess"]
[Site "Chess.com"]
[Date "2023.05.20"]
[Round "-"]
[White "lucaskk818"]
[Black "ossie57"]
[Result "0-1"]
[WhiteElo "1886"]
[BlackElo "1888"]
[TimeControl "300"]
[EndTime "11:48:09 PDT"]
[Termination "ossie57 won on time"]

1. d4 {[%clk 0:04:58.6]} 1... Nf6 {[%clk 0:04:56.9]} 2. c4 {[%clk 0:04:58.1]}
2... g6 {[%clk 0:04:56.1]} 3. Nc3 {[%clk 0:04:56.2]} 3... Bg7 {[%clk 0:04:54.1]}
4. e4 {[%clk 0:04:54.7]} 4... d6 {[%clk 0:04:53.7]} 5. h3 {[%clk 0:04:53.3]}
5... O-O {[%clk 0:04:51.3]} 6. Bg5 {[%clk 0:04:52.9]} 6... Nc6 {[%clk
0:04:47.1]} 7. Nf3 {[%clk 0:04:50]} 7... Re8 {[%clk 0:04:42.6]} 8. Be2 {[%clk
0:04:46]} 8... e5 {[%clk 0:04:41.5]} 9. d5 {[%clk 0:04:44.6]} 9... Ne7 {[%clk
0:04:40.1]} 10. O-O {[%clk 0:04:38.5]} 10... h6 {[%clk 0:04:39.1]} 11. Be3
{[%clk 0:04:37.1]} 11... Kh7 {[%clk 0:04:38.1]} 12. Qd2 {[%clk 0:04:34.5]} 12...
Nfg8 {[%clk 0:04:34.1]} 13. b4 {[%clk 0:04:30.7]} 13... b6 {[%clk 0:04:31.6]}
14. c5 {[%clk 0:04:28.5]} 14... f5 {[%clk 0:04:26.1]} 15. cxd6 {[%clk
0:04:17.4]} 15... cxd6 {[%clk 0:04:24.9]} 16. Qb2 {[%clk 0:03:45.4]} 16... f4
{[%clk 0:04:16.7]} 17. Bd2 {[%clk 0:03:42.9]} 17... g5 {[%clk 0:04:14.1]} 18.
Rfc1 {[%clk 0:03:27.4]} 18... Ng6 {[%clk 0:04:12.6]} 19. Nb5 {[%clk 0:03:20.9]}
19... Re7 {[%clk 0:04:01.6]} 20. Qc2 {[%clk 0:02:53.1]} 20... Ba6 {[%clk
0:03:39]} 21. Kf1 {[%clk 0:02:36.9]} 21... Bxb5 {[%clk 0:03:25]} 22. Bxb5 {[%clk
0:02:33.3]} 22... Rf7 {[%clk 0:03:10.8]} 23. Bc6 {[%clk 0:02:06]} 23... Rc8
{[%clk 0:03:02.6]} 24. Nh2 {[%clk 0:01:51.1]} 24... h5 {[%clk 0:02:50.4]} 25. f3
{[%clk 0:01:45.3]} 25... Nh6 {[%clk 0:02:39.6]} 26. Be1 {[%clk 0:01:35.8]} 26...
Rfc7 {[%clk 0:02:31.3]} 27. b5 {[%clk 0:01:29.3]} 27... Ne7 {[%clk 0:02:11.6]}
28. Ke2 {[%clk 0:01:21.4]} 28... Qf8 {[%clk 0:02:10.3]} 29. Qa4 {[%clk
0:01:09.7]} 29... Qf6 {[%clk 0:01:59.3]} 30. Rc2 {[%clk 0:01:03.7]} 30... Qg6
{[%clk 0:01:57.9]} 31. Kd1 {[%clk 0:01:01.8]} 31... g4 {[%clk 0:01:57]} 32. hxg4
{[%clk 0:01:00.1]} 32... hxg4 {[%clk 0:01:56.2]} 33. Kc1 {[%clk 0:00:49]} 33...
Qg5 {[%clk 0:01:43.1]} 34. Kb2 {[%clk 0:00:37.3]} 34... Ng6 {[%clk 0:01:41.9]}
35. Bd2 {[%clk 0:00:25.5]} 35... Nh4 {[%clk 0:01:36.5]} 36. g3 {[%clk
0:00:19.4]} 36... Nxf3 {[%clk 0:01:19.7]} 37. Nxf3 {[%clk 0:00:18.4]} 37... gxf3
{[%clk 0:01:17.6]} 38. gxf4 {[%clk 0:00:17.2]} 38... exf4+ {[%clk 0:01:14]} 39.
Bc3 {[%clk 0:00:13.8]} 39... Bxc3+ {[%clk 0:01:07.6]} 40. Kxc3 {[%clk
0:00:13.7]} 40... Qe5+ {[%clk 0:01:06.5]} 41. Kb3 {[%clk 0:00:12.6]} 41... Qxa1
{[%clk 0:01:04.5]} 42. e5 {[%clk 0:00:10.4]} 42... Qb1+ {[%clk 0:01:02.3]} 43.
Rb2 {[%clk 0:00:09.6]} 43... Qd1+ {[%clk 0:01:01.1]} 44. Rc2 {[%clk 0:00:08.1]}
44... f2 {[%clk 0:00:51.8]} 45. Qe4+ {[%clk 0:00:06.3]} 45... Kh8 {[%clk
0:00:47.1]} 46. e6 {[%clk 0:00:04.2]} 46... f1=Q {[%clk 0:00:43.9]} 0-1

[Event "Live Chess"]
[Site "Chess.com"]
[Date "2023.05.20"]
[Round "-"]
[White "Enhard"]
[Black "TheSmoulderingMaster"]
[Result "1/2-1/2"]
[WhiteElo "1453"]
[BlackElo "1742"]
[TimeControl "300"]
[EndTime "11:48:09 PDT"]
[Termination "Game drawn by repetition"]

1. e4 {[%clk 0:04:52.1]} 1... c5 {[%clk 0:04:59]} 2. Nc3 {[%clk 0:04:50]} 2...
Nc6 {[%clk 0:04:57.6]} 3. g3 {[%clk 0:04:42.5]} 3... e6 {[%clk 0:04:57]} 4. Bg2
{[%clk 0:04:41.5]} 4... g6 {[%clk 0:04:56.5]} 5. f3 {[%clk 0:04:40.4]} 5... Bg7
{[%clk 0:04:56]} 6. d3 {[%clk 0:04:36.9]} 6... Nge7 {[%clk 0:04:54.4]} 7. Nge2
{[%clk 0:04:35.6]} 7... O-O {[%clk 0:04:53.6]} 8. O-O {[%clk 0:04:34.5]} 8... d5
{[%clk 0:04:52.7]} 9. Nf4 {[%clk 0:04:26.5]} 9... Nd4 {[%clk 0:04:47.6]} 10. Be3
{[%clk 0:04:19.1]} 10... Qb6 {[%clk 0:04:43.8]} 11. Rb1 {[%clk 0:04:10.7]} 11...
Qa5 {[%clk 0:04:41]} 12. a3 {[%clk 0:04:07]} 12... Bd7 {[%clk 0:04:39.1]} 13.
Nfe2 {[%clk 0:03:55.9]} 13... Nxe2+ {[%clk 0:04:28.6]} 14. Nxe2 {[%clk
0:03:53.4]} 14... d4 {[%clk 0:04:27.6]} 15. Bd2 {[%clk 0:03:52.3]} 15... Qa4
{[%clk 0:04:24.1]} 16. c4 {[%clk 0:03:45.8]} 16... Qc6 {[%clk 0:04:19.5]} 17.
Qc1 {[%clk 0:03:39]} 17... a6 {[%clk 0:04:18]} 18. Bh6 {[%clk 0:03:37.9]} 18...
b5 {[%clk 0:04:15.4]} 19. Bxg7 {[%clk 0:03:36.7]} 19... Kxg7 {[%clk 0:04:14.5]}
20. b3 {[%clk 0:03:35.3]} 20... Rfb8 {[%clk 0:04:11.7]} 21. Qd2 {[%clk 0:03:31]}
21... a5 {[%clk 0:04:10]} 22. f4 {[%clk 0:03:17.5]} 22... Rb7 {[%clk 0:04:06.6]}
23. e5 {[%clk 0:03:16.1]} 23... Nf5 {[%clk 0:04:04.9]} 24. Bxc6 {[%clk
0:03:14.2]} 24... Bxc6 {[%clk 0:04:03]} 25. cxb5 {[%clk 0:02:58.2]} 25... Bxb5
{[%clk 0:04:00.9]} 26. b4 {[%clk 0:02:51]} 26... axb4 {[%clk 0:03:59.1]} 27.
axb4 {[%clk 0:02:49.3]} 27... Ra3 {[%clk 0:03:54.7]} 28. bxc5 {[%clk 0:02:45]}
28... Rxd3 {[%clk 0:03:53.2]} 29. Qc2 {[%clk 0:02:38.3]} 29... Ne3 {[%clk
0:03:44.3]} 30. Rxb5 {[%clk 0:02:08.9]} 30... Nxc2 {[%clk 0:03:37.6]} 31. Rxb7
{[%clk 0:02:07]} 31... Rd2 {[%clk 0:03:32.5]} 32. Nxd4 {[%clk 0:01:58.6]} 32...
Nxd4 {[%clk 0:03:30.1]} 33. Rc7 {[%clk 0:01:54.3]} 33... Ne2+ {[%clk 0:03:24.7]}
34. Kh1 {[%clk 0:01:50.8]} 34... Nd4 {[%clk 0:03:23.3]} 35. Rd7 {[%clk
0:01:27.3]} 35... Kf8 {[%clk 0:03:15.4]} 36. Rxd4 {[%clk 0:01:25.4]} 36... Rxd4
{[%clk 0:03:12.9]} 37. Rc1 {[%clk 0:01:24.8]} 37... Ke8 {[%clk 0:03:08.5]} 38.
c6 {[%clk 0:01:23.7]} 38... Kd8 {[%clk 0:03:08]} 39. c7+ {[%clk 0:01:21.7]}
39... Kc8 {[%clk 0:03:07.3]} 40. Kg2 {[%clk 0:01:21.3]} 40... Rd2+ {[%clk
0:03:05.9]} 41. Kh3 {[%clk 0:01:20.8]} 41... h6 {[%clk 0:03:04.3]} 42. Rc3
{[%clk 0:01:07.1]} 42... Rb2 {[%clk 0:03:00.6]} 43. Rc1 {[%clk 0:01:04.9]} 43...
Rd2 {[%clk 0:02:59.3]} 44. Rc3 {[%clk 0:01:03.9]} 44... Rb2 {[%clk 0:02:57.9]}
45. Rc1 {[%clk 0:01:00.5]} 45... Rd2 {[%clk 0:02:56.9]} 1/2-1/2

[Event "Live Chess"]
[Site "Chess.com"]
[Date "2023.05.20"]
[Round "-"]
[White "ProfPoisson"]
[Black "profpirate4"]
[Result "0-1"]
[WhiteElo "1058"]
[BlackElo "1075"]
[TimeControl "300"]
[EndTime "11:48:10 PDT"]
[Termination "profpirate4 won by checkmate"]

1. e4 {[%clk 0:04:54.8]} 1... c5 {[%clk 0:04:58.8]} 2. Nf3 {[%clk 0:04:52.2]}
2... d6 {[%clk 0:04:57.9]} 3. Bb5+ {[%clk 0:04:48.6]} 3... Bd7 {[%clk
0:04:56.4]} 4. Bxd7+ {[%clk 0:04:46.7]} 4... Qxd7 {[%clk 0:04:55.5]} 5. c4
{[%clk 0:04:46]} 5... Nf6 {[%clk 0:04:53.1]} 6. Nc3 {[%clk 0:04:39.1]} 6... e5
{[%clk 0:04:50.8]} 7. O-O {[%clk 0:04:37.3]} 7... Be7 {[%clk 0:04:48.9]} 8. Nd5
{[%clk 0:04:25.7]} 8... O-O {[%clk 0:04:46.2]} 9. Nxf6+ {[%clk 0:04:24]} 9...
Bxf6 {[%clk 0:04:45.1]} 10. b3 {[%clk 0:04:11.3]} 10... b5 {[%clk 0:04:43.7]}
11. Bb2 {[%clk 0:04:09.6]} 11... bxc4 {[%clk 0:04:39.4]} 12. bxc4 {[%clk
0:04:07.3]} 12... Nc6 {[%clk 0:04:38.3]} 13. h4 {[%clk 0:03:44]} 13... Rab8
{[%clk 0:04:31.5]} 14. Qc1 {[%clk 0:03:38.5]} 14... Qe7 {[%clk 0:04:26.9]} 15.
d3 {[%clk 0:03:36.7]} 15... Bxh4 {[%clk 0:04:25.1]} 16. Nxh4 {[%clk 0:03:34.5]}
16... Qxh4 {[%clk 0:04:23.6]} 17. Qe3 {[%clk 0:03:14.4]} 17... Rxb2 {[%clk
0:04:18.6]} 18. Rab1 {[%clk 0:02:53.3]} 18... Rxa2 {[%clk 0:04:12.3]} 19. Rb7
{[%clk 0:02:46.6]} 19... h6 {[%clk 0:03:57.5]} 20. f4 {[%clk 0:02:41.4]} 20...
Rb8 {[%clk 0:03:36.6]} 21. Rc7 {[%clk 0:02:33.5]} 21... Nd4 {[%clk 0:03:27.2]}
22. fxe5 {[%clk 0:02:31.2]} 22... Qg4 {[%clk 0:03:12.1]} 23. Rfxf7 {[%clk
0:02:27.1]} 23... Qxg2# {[%clk 0:03:09.5]} 0-1

[Event "Live Chess"]
[Site "Chess.com"]
[Date "2023.05.20"]
[Round "-"]
[White "AbilifyXL"]
[Black "Tilbs_12"]
[Result "1-0"]
[WhiteElo "1944"]
[BlackElo "1564"]
[TimeControl "300"]
[EndTime "11:48:13 PDT"]
[Termination "AbilifyXL won by resignation"]

1. d4 {[%clk 0:04:58]} 1... d5 {[%clk 0:04:58.9]} 2. c4 {[%clk 0:04:57.7]} 2...
c6 {[%clk 0:04:58.2]} 3. Nc3 {[%clk 0:04:57.2]} 3... Nf6 {[%clk 0:04:57.6]} 4.
cxd5 {[%clk 0:04:56.9]} 4... cxd5 {[%clk 0:04:56.4]} 5. Nf3 {[%clk 0:04:56.6]}
5... Nc6 {[%clk 0:04:55.3]} 6. Bg5 {[%clk 0:04:56.3]} 6... Bf5 {[%clk
0:04:47.6]} 7. Bxf6 {[%clk 0:04:51.1]} 7... exf6 {[%clk 0:04:46.3]} 8. Qb3
{[%clk 0:04:50.7]} 8... Be6 {[%clk 0:04:17.4]} 9. Qxb7 {[%clk 0:04:45.3]} 9...
Nb4 {[%clk 0:03:58.8]} 10. Rc1 {[%clk 0:04:36]} 10... Rb8 {[%clk 0:03:26.4]} 11.
Qxa7 {[%clk 0:04:23.2]} 11... Nc6 {[%clk 0:03:25.9]} 12. Qa4 {[%clk 0:04:20.7]}
12... Bd7 {[%clk 0:03:15.7]} 13. Qc2 {[%clk 0:04:14.7]} 13... Nb4 {[%clk
0:03:06.6]} 14. Qb1 {[%clk 0:04:11.2]} 14... Be7 {[%clk 0:03:02.4]} 15. a3
{[%clk 0:04:07.9]} 15... Na6 {[%clk 0:02:57.9]} 16. e3 {[%clk 0:04:06.2]} 16...
Nc7 {[%clk 0:02:54.3]} 17. Bd3 {[%clk 0:04:02.9]} 17... O-O {[%clk 0:02:52.7]}
18. Bxh7+ {[%clk 0:04:00]} 18... Kh8 {[%clk 0:02:51.6]} 19. Bd3 {[%clk
0:03:58.7]} 19... Bg4 {[%clk 0:02:47.1]} 20. Be2 {[%clk 0:03:57.3]} 20... Bd6
{[%clk 0:02:45.4]} 21. O-O {[%clk 0:03:56.3]} 21... g6 {[%clk 0:02:38.6]} 22. h3
{[%clk 0:03:55.2]} 22... Bf5 {[%clk 0:02:37.4]} 23. Bd3 {[%clk 0:03:54.6]} 23...
Bxh3 {[%clk 0:02:24.7]} 24. gxh3 {[%clk 0:03:50]} 24... f5 {[%clk 0:02:23]} 25.
Rfe1 {[%clk 0:03:38.6]} 25... Ne6 {[%clk 0:02:18.9]} 26. Bf1 {[%clk 0:03:29.5]}
26... Ng5 {[%clk 0:02:17.4]} 27. Bg2 {[%clk 0:03:12.9]} 27... Kg7 {[%clk
0:02:13.9]} 28. Nxd5 {[%clk 0:03:07]} 28... Bh2+ {[%clk 0:02:11.3]} 29. Nxh2
{[%clk 0:03:04.8]} 29... Nxh3+ {[%clk 0:02:08.5]} 30. Bxh3 {[%clk 0:03:01.9]}
30... Qxd5 {[%clk 0:02:08.2]} 31. Bg2 {[%clk 0:03:00.7]} 31... Rh8 {[%clk
0:02:06.8]} 32. Bxd5 {[%clk 0:02:59]} 1-0